[Event "Titled Tuesday Blitz November 01 Early 2022"]
[White "Lazavik, Denis"]
[Black "Rakhmanov, Aleksandr"]
[WhiteFideId "13515110"]
[BlackFideId "4173708"]
[WhiteElo "3041"]
[BlackElo "2793"]
[Result "0-1"]
[Round "08"]
[TimeControl "180+1"]
[Date "2022.11.01"]
[WhiteClock "0:00:03"]
[BlackClock "0:00:03"]

1. d4 {[%clk 0:03:00]}  Nf6 {[%clk 0:02:58]} 2. c4 {[%clk 0:03:01]}  d6 {[%clk 0:02:58]} 3. Nf3 {[%clk 0:03:01]}  g6 {[%clk 0:02:58]} 4. g3 {[%clk 0:03:01]}  Bg7 {[%clk 0:02:57]} 5. Bg2 {[%clk 0:03:02]}  O-O {[%clk 0:02:57]} 6. Nc3 {[%clk 0:03:02]}  Bf5 {[%clk 0:02:57]} 7. Nh4 {[%clk 0:03:02]}  Bc8 {[%clk 0:02:57]} 8. O-O {[%clk 0:03:03]}  e5 {[%clk 0:02:58]} 9. Nf3 {[%clk 0:03:03]}  Nc6 {[%clk 0:02:49]} 10. d5 {[%clk 0:03:03]}  Ne7 {[%clk 0:02:37]} 11. e4 {[%clk 0:03:02]}  Nd7 {[%clk 0:02:36]} 12. Be3 {[%clk 0:02:57]}  a5 {[%clk 0:02:34]} 13. Qd2 {[%clk 0:02:55]}  b6 {[%clk 0:02:33]} 14. b3 {[%clk 0:02:53]}  f5 {[%clk 0:02:29]} 15. Ng5 {[%clk 0:02:48]}  Nc5 {[%clk 0:02:08]} 16. exf5 {[%clk 0:02:34]}  Nxf5 {[%clk 0:01:45]} 17. Nge4 {[%clk 0:02:31]}  Nxe3 {[%clk 0:01:36]} 18. Qxe3 {[%clk 0:02:31]}  Bf5 {[%clk 0:01:32]} 19. Rab1 {[%clk 0:02:25]}  Qd7 {[%clk 0:01:31]} 20. a3 {[%clk 0:02:23]}  a4 {[%clk 0:01:06]} 21. b4 {[%clk 0:02:22]}  Nb3 {[%clk 0:01:06]} 22. Rbd1 {[%clk 0:02:08]}  Nd4 {[%clk 0:01:04]} 23. Ne2 {[%clk 0:01:50]}  Rae8 {[%clk 0:00:54]} 24. f3 {[%clk 0:01:45]}  h5 {[%clk 0:00:51]} 25. h4 {[%clk 0:01:41]}  Kh7 {[%clk 0:00:35]} 26. Kh2 {[%clk 0:01:25]}  Bh6 {[%clk 0:00:22]} 27. Qd3 {[%clk 0:01:24]}  Nxe2 {[%clk 0:00:18]} 28. Qxe2 {[%clk 0:01:23]}  Kg7 {[%clk 0:00:18]} 29. Rd3 {[%clk 0:01:21]}  Rf7 {[%clk 0:00:18]} 30. Rc3 {[%clk 0:01:20]}  Ref8 {[%clk 0:00:19]} 31. c5 {[%clk 0:01:20]}  bxc5 {[%clk 0:00:17]} 32. bxc5 {[%clk 0:01:21]}  Qd8 {[%clk 0:00:15]} 33. Kg1 {[%clk 0:01:11]}  g5 {[%clk 0:00:14]} 34. hxg5 {[%clk 0:01:05]}  Bxg5 {[%clk 0:00:15]} 35. cxd6 {[%clk 0:00:58]}  cxd6 {[%clk 0:00:15]} 36. Rc6 {[%clk 0:00:59]}  Bxe4 {[%clk 0:00:09]} 37. Qxe4 {[%clk 0:00:58]}  h4 {[%clk 0:00:10]} 38. g4 {[%clk 0:00:30]}  Rf4 {[%clk 0:00:08]} 39. Qc2 {[%clk 0:00:28]}  R8f7 {[%clk 0:00:04]} 40. Rb1 {[%clk 0:00:24]}  h3 {[%clk 0:00:04]} 41. Bh1 {[%clk 0:00:22]}  e4 {[%clk 0:00:04]} 42. Rc8 {[%clk 0:00:12]}  Qf6 {[%clk 0:00:02]} 43. Rbb8 {[%clk 0:00:11]}  Qd4+ {[%clk 0:00:02]} 44. Kh2 {[%clk 0:00:11]}  Rxg4 {[%clk 0:00:02]} 45. Rg8+ {[%clk 0:00:08]}  Kf6 {[%clk 0:00:02]} 46. fxg4 {[%clk 0:00:08]}  Bf4+ {[%clk 0:00:02]} 47. Kxh3 {[%clk 0:00:04]}  Rh7+ {[%clk 0:00:03]} 48. Kg2 {[%clk 0:00:04]}  Rh2+ {[%clk 0:00:04]} 49. Kf1 {[%clk 0:00:03]}  Rxh1+ {[%clk 0:00:04]} 50. Kg2 {[%clk 0:00:03]}  Qg1# {[%clk 0:00:03]} 0-1


[Site "https://www.chess.com"]

[Event "Titled Tuesday Blitz November 01 Early 2022"]
[White "Lewtak, Damian"]
[Black "Yurasova, Daria"]
[WhiteFideId "1141724"]
[BlackFideId "34146919"]
[WhiteElo "2329"]
[BlackElo "2044"]
[Result "0-1"]
[Round "08"]
[TimeControl "180+1"]
[Date "2022.11.02"]
[WhiteClock "0:00:47"]
[BlackClock "0:00:17"]

1. h4 {[%clk 0:03:00]}  d5 {[%clk 0:02:57]} 2. a4 {[%clk 0:03:01]}  Bf5 {[%clk 0:02:57]} 3. e3 {[%clk 0:03:02]}  Nf6 {[%clk 0:02:57]} 4. d3 {[%clk 0:03:03]}  e6 {[%clk 0:02:57]} 5. Nd2 {[%clk 0:03:03]}  h6 {[%clk 0:02:57]} 6. g3 {[%clk 0:03:04]}  Nbd7 {[%clk 0:02:57]} 7. Bg2 {[%clk 0:03:04]}  Bd6 {[%clk 0:02:57]} 8. Ne2 {[%clk 0:03:04]}  O-O {[%clk 0:02:57]} 9. b3 {[%clk 0:03:04]}  c5 {[%clk 0:02:56]} 10. Bb2 {[%clk 0:03:04]}  Rc8 {[%clk 0:02:56]} 11. O-O {[%clk 0:03:00]}  Re8 {[%clk 0:02:52]} 12. Re1 {[%clk 0:02:59]}  Bh7 {[%clk 0:02:51]} 13. e4 {[%clk 0:02:57]}  dxe4 {[%clk 0:02:51]} 14. Nxe4 {[%clk 0:02:58]}  Nxe4 {[%clk 0:02:51]} 15. dxe4 {[%clk 0:02:58]}  Bf8 {[%clk 0:02:51]} 16. Nf4 {[%clk 0:02:48]}  Qc7 {[%clk 0:02:46]} 17. Nh5 {[%clk 0:02:40]}  c4 {[%clk 0:02:31]} 18. Qg4 {[%clk 0:02:24]}  c3 {[%clk 0:02:28]} 19. Ba3 {[%clk 0:02:24]}  Ne5 {[%clk 0:02:17]} 20. Qe2 {[%clk 0:02:24]}  Bxa3 {[%clk 0:02:11]} 21. Rxa3 {[%clk 0:02:25]}  Red8 {[%clk 0:02:11]} 22. Ra2 {[%clk 0:02:15]}  Rd2 {[%clk 0:02:09]} 23. Qf1 {[%clk 0:02:05]}  Rcd8 {[%clk 0:01:51]} 24. Nf4 {[%clk 0:01:58]}  Ng4 {[%clk 0:01:43]} 25. Nd3 {[%clk 0:01:54]}  R8xd3 {[%clk 0:01:40]} 26. Qxd3 {[%clk 0:01:51]}  Rxd3 {[%clk 0:01:40]} 27. cxd3 {[%clk 0:01:52]}  Qb6 {[%clk 0:01:13]} 28. Rc1 {[%clk 0:01:45]}  Qxb3 {[%clk 0:01:09]} 29. Rac2 {[%clk 0:01:42]}  Qb6 {[%clk 0:01:09]} 30. Bh3 {[%clk 0:01:33]}  Ne5 {[%clk 0:00:38]} 31. Rxc3 {[%clk 0:01:30]}  Bg6 {[%clk 0:00:38]} 32. Bg2 {[%clk 0:01:21]}  Qd4 {[%clk 0:00:36]} 33. Rc8+ {[%clk 0:01:17]}  Kh7 {[%clk 0:00:36]} 34. Rb8 {[%clk 0:01:17]}  Nxd3 {[%clk 0:00:34]} 35. Rcc8 {[%clk 0:01:14]}  Qxf2+ {[%clk 0:00:33]} 36. Kh1 {[%clk 0:01:10]}  Qe1+ {[%clk 0:00:31]} 37. Kh2 {[%clk 0:01:10]}  Bh5 {[%clk 0:00:20]} 38. e5 {[%clk 0:00:56]}  Qe2 {[%clk 0:00:18]} 39. g4 {[%clk 0:00:51]}  Bxg4 {[%clk 0:00:18]} 40. h5 {[%clk 0:00:51]}  Bxh5 {[%clk 0:00:18]} 41. Kh3 {[%clk 0:00:47]}  Nf4+ {[%clk 0:00:18]} 42. Kh4 {[%clk 0:00:47]}  Qg4# {[%clk 0:00:17]} 0-1


[Site "https://www.chess.com"]

[Event "Titled Tuesday Blitz November 01 Early 2022"]
[White "Luxama, Jacques Muller"]
[Black "Lohani, Sujana"]
[WhiteFideId "11900113"]
[BlackFideId "12311987"]
[WhiteElo "1931"]
[BlackElo "1691"]
[Result "1-0"]
[Round "08"]
[TimeControl "180+1"]
[Date "2022.11.02"]
[WhiteClock "0:01:05"]
[BlackClock "0:00:03"]

1. d4 {[%clk 0:03:00]}  g6 {[%clk 0:03:00]} 2. h4 {[%clk 0:02:59]}  h5 {[%clk 0:02:58]} 3. Nf3 {[%clk 0:02:59]}  Bg7 {[%clk 0:02:58]} 4. e4 {[%clk 0:02:59]}  c5 {[%clk 0:02:58]} 5. dxc5 {[%clk 0:02:58]}  Qa5+ {[%clk 0:02:57]} 6. Bd2 {[%clk 0:02:57]}  Qxc5 {[%clk 0:02:58]} 7. Bc3 {[%clk 0:02:58]}  Nf6 {[%clk 0:02:36]} 8. Bd3 {[%clk 0:02:53]}  O-O {[%clk 0:02:34]} 9. Qe2 {[%clk 0:02:51]}  Nc6 {[%clk 0:02:30]} 10. Nbd2 {[%clk 0:02:48]}  d5 {[%clk 0:02:23]} 11. Nb3 {[%clk 0:02:46]}  Qb6 {[%clk 0:02:08]} 12. exd5 {[%clk 0:02:42]}  Nb4 {[%clk 0:02:07]} 13. Bd4 {[%clk 0:02:32]}  Qd8 {[%clk 0:01:59]} 14. c4 {[%clk 0:02:30]}  e6 {[%clk 0:01:49]} 15. dxe6 {[%clk 0:02:21]}  Bxe6 {[%clk 0:01:48]} 16. O-O {[%clk 0:02:17]}  Nxd3 {[%clk 0:01:37]} 17. Qxd3 {[%clk 0:02:17]}  Rc8 {[%clk 0:01:36]} 18. Rac1 {[%clk 0:02:16]}  Qc7 {[%clk 0:01:22]} 19. Qc3 {[%clk 0:01:47]}  Ne8 {[%clk 0:00:57]} 20. Bxg7 {[%clk 0:01:42]}  Nxg7 {[%clk 0:00:58]} 21. Nbd2 {[%clk 0:01:39]}  Qf4 {[%clk 0:00:56]} 22. Qe5 {[%clk 0:01:33]}  Qg4 {[%clk 0:00:44]} 23. Rfe1 {[%clk 0:01:21]}  Nf5 {[%clk 0:00:41]} 24. Re4 {[%clk 0:01:18]}  f6 {[%clk 0:00:03]} 25. Qxe6+ {[%clk 0:01:17]}  Kg7 {[%clk 0:00:03]} 26. Rxg4 {[%clk 0:01:14]}  hxg4 {[%clk 0:00:03]} 27. Ne1 {[%clk 0:01:06]}  Nd4 {[%clk 0:00:03]} 28. Qd7+ {[%clk 0:01:05]} 1-0


[Site "https://www.chess.com"]

[Event "Titled Tuesday Blitz November 01 Early 2022"]
[White "Madaminov, Mukhiddin"]
[Black "Korelskiy, Egor"]
[WhiteFideId "14210703"]
[BlackFideId "34329064"]
[WhiteElo "2341"]
[BlackElo "2053"]
[Result "1-0"]
[Round "08"]
[TimeControl "180+1"]
[Date "2022.11.02"]
[WhiteClock "0:00:51"]
[BlackClock "0:00:54"]

1. d4 {[%clk 0:03:00]}  d5 {[%clk 0:03:00]} 2. Nc3 {[%clk 0:03:00]}  Nf6 {[%clk 0:02:58]} 3. Bf4 {[%clk 0:03:00]}  e6 {[%clk 0:02:57]} 4. Nb5 {[%clk 0:02:59]}  Bb4+ {[%clk 0:02:57]} 5. c3 {[%clk 0:02:59]}  Ba5 {[%clk 0:02:57]} 6. e3 {[%clk 0:02:55]}  a6 {[%clk 0:02:56]} 7. Na3 {[%clk 0:02:55]}  Bb6 {[%clk 0:02:53]} 8. Bd3 {[%clk 0:02:54]}  Nbd7 {[%clk 0:02:51]} 9. Nf3 {[%clk 0:02:53]}  c5 {[%clk 0:02:51]} 10. O-O {[%clk 0:02:53]}  Bc7 {[%clk 0:02:51]} 11. Bg3 {[%clk 0:02:52]}  O-O {[%clk 0:02:51]} 12. Nc2 {[%clk 0:02:50]}  Bxg3 {[%clk 0:02:50]} 13. hxg3 {[%clk 0:02:50]}  Qc7 {[%clk 0:02:51]} 14. Rc1 {[%clk 0:02:43]}  e5 {[%clk 0:02:51]} 15. Be2 {[%clk 0:02:38]}  b6 {[%clk 0:02:50]} 16. c4 {[%clk 0:02:20]}  dxc4 {[%clk 0:02:45]} 17. Bxc4 {[%clk 0:02:16]}  Bb7 {[%clk 0:02:42]} 18. dxc5 {[%clk 0:02:14]}  bxc5 {[%clk 0:02:36]} 19. Qe2 {[%clk 0:02:10]}  Nb6 {[%clk 0:02:36]} 20. Na3 {[%clk 0:01:19]}  Qe7 {[%clk 0:02:32]} 21. Rfd1 {[%clk 0:01:18]}  h6 {[%clk 0:01:56]} 22. Nh4 {[%clk 0:01:16]}  Nxc4 {[%clk 0:01:53]} 23. Qxc4 {[%clk 0:01:16]}  Rfd8 {[%clk 0:01:45]} 24. Nf5 {[%clk 0:01:12]}  Qf8 {[%clk 0:01:39]} 25. f3 {[%clk 0:01:09]}  Bc8 {[%clk 0:01:22]} 26. g4 {[%clk 0:01:01]}  Be6 {[%clk 0:01:04]} 27. Rxd8 {[%clk 0:00:56]}  Qxd8 {[%clk 0:01:03]} 28. Qxc5 {[%clk 0:00:55]}  Rc8 {[%clk 0:01:03]} 29. Qxc8 {[%clk 0:00:52]}  Bxc8 {[%clk 0:00:54]} 30. Rxc8 {[%clk 0:00:51]}  Qxc8 {[%clk 0:00:54]} 31. Ne7+ {[%clk 0:00:51]} 1-0


[Site "https://www.chess.com"]

[Event "Titled Tuesday Blitz November 01 Early 2022"]
[White "Martinez Alcantara, Jose Eduardo"]
[Black "Bryakin, Mikhail"]
[WhiteFideId "3805662"]
[BlackFideId "4165314"]
[WhiteElo "3044"]
[BlackElo "2796"]
[Result "1-0"]
[Round "08"]
[TimeControl "180+1"]
[Date "2022.11.01"]
[WhiteClock "0:01:38"]
[BlackClock "0:01:30"]

1. e4 {[%clk 0:03:00]}  c5 {[%clk 0:02:59]} 2. Nf3 {[%clk 0:03:01]}  Nc6 {[%clk 0:02:58]} 3. c3 {[%clk 0:03:01]}  Nf6 {[%clk 0:02:58]} 4. e5 {[%clk 0:03:02]}  Nd5 {[%clk 0:02:58]} 5. Bc4 {[%clk 0:03:01]}  Nb6 {[%clk 0:02:58]} 6. Bb3 {[%clk 0:03:02]}  d5 {[%clk 0:02:56]} 7. exd6 {[%clk 0:03:02]}  Qxd6 {[%clk 0:02:57]} 8. O-O {[%clk 0:03:03]}  g6 {[%clk 0:02:57]} 9. d4 {[%clk 0:03:03]}  Bg7 {[%clk 0:02:57]} 10. dxc5 {[%clk 0:03:03]}  Qxc5 {[%clk 0:02:57]} 11. Be3 {[%clk 0:03:03]}  Qh5 {[%clk 0:02:56]} 12. Nbd2 {[%clk 0:02:55]}  O-O {[%clk 0:02:55]} 13. h3 {[%clk 0:02:56]}  Bd7 {[%clk 0:02:48]} 14. Ng5 {[%clk 0:02:52]}  Qxd1 {[%clk 0:02:48]} 15. Raxd1 {[%clk 0:02:53]}  Rad8 {[%clk 0:02:41]} 16. Nde4 {[%clk 0:02:52]}  h6 {[%clk 0:02:35]} 17. Nf3 {[%clk 0:02:50]}  Bc8 {[%clk 0:02:32]} 18. Nh4 {[%clk 0:02:36]}  Kh7 {[%clk 0:02:29]} 19. Rxd8 {[%clk 0:02:35]}  Nxd8 {[%clk 0:02:30]} 20. Nf3 {[%clk 0:02:29]}  f5 {[%clk 0:02:28]} 21. Nc5 {[%clk 0:02:28]}  e5 {[%clk 0:02:28]} 22. Rd1 {[%clk 0:02:26]}  Re8 {[%clk 0:02:28]} 23. Na4 {[%clk 0:02:23]}  e4 {[%clk 0:02:16]} 24. Nxb6 {[%clk 0:01:54]}  axb6 {[%clk 0:02:17]} 25. Nd4 {[%clk 0:01:54]}  g5 {[%clk 0:01:48]} 26. Nb5 {[%clk 0:01:50]}  Be6 {[%clk 0:01:42]} 27. Nd6 {[%clk 0:01:36]}  Bxb3 {[%clk 0:01:40]} 28. axb3 {[%clk 0:01:37]}  Re6 {[%clk 0:01:30]} 29. Nxf5 {[%clk 0:01:37]}  Nc6 {[%clk 0:01:30]} 30. Rd7 {[%clk 0:01:38]} 1-0


[Site "https://www.chess.com"]

[Event "Titled Tuesday Blitz November 01 Early 2022"]
[White "Mekhitarian, Krikor Sevag"]
[Black "Kanyamarala, Trisha"]
[WhiteFideId "2107660"]
[BlackFideId "45004722"]
[WhiteElo "2614"]
[BlackElo "2099"]
[Result "1-0"]
[Round "08"]
[TimeControl "180+1"]
[Date "2022.11.02"]
[WhiteClock "0:00:56"]
[BlackClock "0:00:23"]

1. e4 {[%clk 0:03:00]}  c5 {[%clk 0:02:52]} 2. Nf3 {[%clk 0:02:57]}  d6 {[%clk 0:02:46]} 3. d4 {[%clk 0:02:55]}  cxd4 {[%clk 0:02:46]} 4. Nxd4 {[%clk 0:02:55]}  Nf6 {[%clk 0:02:45]} 5. Nc3 {[%clk 0:02:55]}  e6 {[%clk 0:02:44]} 6. g4 {[%clk 0:02:54]}  h6 {[%clk 0:02:43]} 7. h3 {[%clk 0:02:46]}  Nc6 {[%clk 0:02:40]} 8. Be3 {[%clk 0:02:40]}  d5 {[%clk 0:02:40]} 9. Bg2 {[%clk 0:02:32]}  Bb4 {[%clk 0:02:33]} 10. Qd3 {[%clk 0:02:04]}  a6 {[%clk 0:02:19]} 11. exd5 {[%clk 0:02:02]}  Nxd5 {[%clk 0:02:10]} 12. Nxc6 {[%clk 0:02:02]}  bxc6 {[%clk 0:02:10]} 13. O-O-O {[%clk 0:01:56]}  Bxc3 {[%clk 0:02:01]} 14. bxc3 {[%clk 0:01:55]}  Bb7 {[%clk 0:02:02]} 15. Bc5 {[%clk 0:01:30]}  Qa5 {[%clk 0:01:45]} 16. Qc4 {[%clk 0:01:07]}  Qb5 {[%clk 0:01:25]} 17. Qd4 {[%clk 0:01:03]}  Qa5 {[%clk 0:00:55]} 18. c4 {[%clk 0:01:02]}  Nf6 {[%clk 0:00:35]} 19. Qd6 {[%clk 0:00:59]}  Qd8 {[%clk 0:00:28]} 20. Bxc6+ {[%clk 0:00:58]}  Bxc6 {[%clk 0:00:25]} 21. Qxc6+ {[%clk 0:00:59]}  Nd7 {[%clk 0:00:25]} 22. Rxd7 {[%clk 0:00:59]}  Qc8 {[%clk 0:00:23]} 23. Rc7+ {[%clk 0:00:56]} 1-0


[Site "https://www.chess.com"]

[Event "Titled Tuesday Blitz November 01 Early 2022"]
[White "Melikhov, Evgeny V."]
[Black "Fudalej, Michal"]
[WhiteFideId "4122046"]
[BlackFideId "1118781"]
[WhiteElo "2169"]
[BlackElo "2088"]
[Result "1-0"]
[Round "08"]
[TimeControl "180+1"]
[Date "2022.11.02"]
[WhiteClock "0:01:48"]
[BlackClock "0:01:01"]

1. d4 {[%clk 0:03:00]}  Nf6 {[%clk 0:02:59]} 2. c4 {[%clk 0:03:00]}  g6 {[%clk 0:02:59]} 3. Nc3 {[%clk 0:03:00]}  Bg7 {[%clk 0:03:00]} 4. e4 {[%clk 0:03:00]}  d6 {[%clk 0:03:00]} 5. f3 {[%clk 0:02:58]}  O-O {[%clk 0:03:00]} 6. Be3 {[%clk 0:02:58]}  e5 {[%clk 0:03:00]} 7. d5 {[%clk 0:02:59]}  Nh5 {[%clk 0:02:59]} 8. Qd2 {[%clk 0:02:55]}  f5 {[%clk 0:02:58]} 9. O-O-O {[%clk 0:02:54]}  Nd7 {[%clk 0:02:58]} 10. exf5 {[%clk 0:02:54]}  gxf5 {[%clk 0:02:58]} 11. Bd3 {[%clk 0:02:54]}  Nc5 {[%clk 0:02:43]} 12. Bc2 {[%clk 0:02:54]}  a5 {[%clk 0:02:43]} 13. Nge2 {[%clk 0:02:53]}  Kh8 {[%clk 0:02:41]} 14. h3 {[%clk 0:02:52]}  a4 {[%clk 0:02:09]} 15. g4 {[%clk 0:02:49]}  Nf4 {[%clk 0:02:04]} 16. Nxf4 {[%clk 0:02:48]}  exf4 {[%clk 0:02:04]} 17. Bd4 {[%clk 0:02:42]}  fxg4 {[%clk 0:01:59]} 18. hxg4 {[%clk 0:02:42]}  Rf7 {[%clk 0:01:29]} 19. Rxh7+ {[%clk 0:02:39]}  Kg8 {[%clk 0:01:29]} 20. Rdh1 {[%clk 0:02:37]}  Kf8 {[%clk 0:01:13]} 21. Rh8+ {[%clk 0:02:30]}  Bxh8 {[%clk 0:01:13]} 22. Rxh8+ {[%clk 0:02:29]}  Ke7 {[%clk 0:01:13]} 23. Rxd8 {[%clk 0:02:29]}  Kxd8 {[%clk 0:01:14]} 24. Bxc5 {[%clk 0:02:20]}  dxc5 {[%clk 0:01:14]} 25. Ne4 {[%clk 0:02:15]}  b6 {[%clk 0:01:07]} 26. Ng5 {[%clk 0:02:14]}  Rf8 {[%clk 0:01:03]} 27. Ne6+ {[%clk 0:02:10]}  Bxe6 {[%clk 0:01:03]} 28. dxe6+ {[%clk 0:02:10]}  Ke7 {[%clk 0:01:04]} 29. Qd7+ {[%clk 0:02:08]}  Kf6 {[%clk 0:01:04]} 30. e7 {[%clk 0:02:05]}  Rfe8 {[%clk 0:01:01]} 31. Bxa4 {[%clk 0:01:51]}  Kf7 {[%clk 0:01:01]} 32. Qf5+ {[%clk 0:01:49]}  Kxe7 {[%clk 0:01:00]} 33. Bxe8 {[%clk 0:01:48]}  Rxe8 {[%clk 0:01:01]} 34. Qxf4 {[%clk 0:01:48]} 1-0


[Site "https://www.chess.com"]

[Event "Titled Tuesday Blitz November 01 Early 2022"]
[White "Mesa Cruz, Juan Carlos"]
[Black "Selkirk, Rebecca"]
[WhiteFideId "6423400"]
[BlackFideId "14306514"]
[WhiteElo "2059"]
[BlackElo "1649"]
[Result "1-0"]
[Round "08"]
[TimeControl "180+1"]
[Date "2022.11.02"]
[WhiteClock "0:00:07"]
[BlackClock "0:00:10"]

1. e4 {[%clk 0:03:00]}  c6 {[%clk 0:02:59]} 2. Nf3 {[%clk 0:02:59]}  d5 {[%clk 0:03:00]} 3. Nc3 {[%clk 0:02:59]}  Bg4 {[%clk 0:02:58]} 4. h3 {[%clk 0:02:57]}  Bxf3 {[%clk 0:02:58]} 5. Qxf3 {[%clk 0:02:58]}  d4 {[%clk 0:02:50]} 6. Bc4 {[%clk 0:02:37]}  e6 {[%clk 0:02:15]} 7. Ne2 {[%clk 0:02:34]}  c5 {[%clk 0:02:07]} 8. d3 {[%clk 0:02:29]}  Nc6 {[%clk 0:02:05]} 9. O-O {[%clk 0:02:28]}  Nf6 {[%clk 0:02:03]} 10. Bg5 {[%clk 0:02:14]}  Be7 {[%clk 0:02:01]} 11. e5 {[%clk 0:02:03]}  Nxe5 {[%clk 0:01:25]} 12. Bb5+ {[%clk 0:01:49]}  Ned7 {[%clk 0:01:14]} 13. Qxb7 {[%clk 0:01:43]}  Rb8 {[%clk 0:01:13]} 14. Bxd7+ {[%clk 0:01:07]}  Nxd7 {[%clk 0:01:10]} 15. Bxe7 {[%clk 0:01:05]}  Rxb7 {[%clk 0:01:07]} 16. Bxd8 {[%clk 0:00:56]}  Kxd8 {[%clk 0:01:08]} 17. b3 {[%clk 0:00:53]}  Ke7 {[%clk 0:01:06]} 18. Ng3 {[%clk 0:00:38]}  f5 {[%clk 0:00:48]} 19. Rfe1 {[%clk 0:00:32]}  Kf6 {[%clk 0:00:47]} 20. Re2 {[%clk 0:00:30]}  g6 {[%clk 0:00:42]} 21. f4 {[%clk 0:00:21]}  Nb6 {[%clk 0:00:25]} 22. Rae1 {[%clk 0:00:19]}  Re8 {[%clk 0:00:25]} 23. Kf2 {[%clk 0:00:12]}  Nd5 {[%clk 0:00:25]} 24. Kf3 {[%clk 0:00:12]}  Ne3 {[%clk 0:00:24]} 25. Nf1 {[%clk 0:00:12]}  Nd5 {[%clk 0:00:22]} 26. Re5 {[%clk 0:00:11]}  a5 {[%clk 0:00:20]} 27. a4 {[%clk 0:00:10]}  Ree7 {[%clk 0:00:19]} 28. Nd2 {[%clk 0:00:10]}  Nb4 {[%clk 0:00:17]} 29. Rxc5 {[%clk 0:00:07]}  Rec7 {[%clk 0:00:16]} 30. Rce5 {[%clk 0:00:06]}  Nxc2 {[%clk 0:00:15]} 31. Rxe6+ {[%clk 0:00:06]}  Kf7 {[%clk 0:00:16]} 32. Nc4 {[%clk 0:00:06]}  Nxe1+ {[%clk 0:00:15]} 33. Rxe1 {[%clk 0:00:05]}  Rxb3 {[%clk 0:00:14]} 34. Kf2 {[%clk 0:00:04]}  Rxd3 {[%clk 0:00:14]} 35. Ne5+ {[%clk 0:00:05]}  Kf6 {[%clk 0:00:14]} 36. Nxd3 {[%clk 0:00:05]}  Rc2+ {[%clk 0:00:14]} 37. Re2 {[%clk 0:00:06]}  Rc3 {[%clk 0:00:15]} 38. Ne5 {[%clk 0:00:06]}  Ra3 {[%clk 0:00:15]} 39. Nd7+ {[%clk 0:00:06]}  Kf7 {[%clk 0:00:14]} 40. Ne5+ {[%clk 0:00:07]}  Kf6 {[%clk 0:00:14]} 41. Nc6 {[%clk 0:00:07]}  Rxa4 {[%clk 0:00:13]} 42. Nd8 {[%clk 0:00:08]}  d3 {[%clk 0:00:13]} 43. Re6+ {[%clk 0:00:08]}  Kg7 {[%clk 0:00:14]} 44. Re7+ {[%clk 0:00:08]}  Kf8 {[%clk 0:00:13]} 45. Rxh7 {[%clk 0:00:07]}  Rd4 {[%clk 0:00:10]} 46. Ne6+ {[%clk 0:00:07]} 1-0


[Site "https://www.chess.com"]

[Event "Titled Tuesday Blitz November 01 Early 2022"]
[White "Mirzoev, Azer"]
[Black "Nozdrachev, Leonid"]
[WhiteFideId "13400304"]
[BlackFideId "24113433"]
[WhiteElo "2525"]
[BlackElo "2249"]
[Result "1-0"]
[Round "08"]
[TimeControl "180+1"]
[Date "2022.11.02"]
[WhiteClock "0:00:07"]
[BlackClock "0:00:32"]

1. c4 {[%clk 0:03:00]}  e5 {[%clk 0:02:59]} 2. e3 {[%clk 0:02:59]}  Nf6 {[%clk 0:02:58]} 3. Nc3 {[%clk 0:02:59]}  Bb4 {[%clk 0:02:57]} 4. Nge2 {[%clk 0:02:58]}  O-O {[%clk 0:02:57]} 5. a3 {[%clk 0:02:58]}  Be7 {[%clk 0:02:56]} 6. d4 {[%clk 0:02:57]}  exd4 {[%clk 0:02:55]} 7. Nxd4 {[%clk 0:02:57]}  d5 {[%clk 0:02:54]} 8. Nf3 {[%clk 0:02:57]}  c6 {[%clk 0:02:38]} 9. cxd5 {[%clk 0:02:51]}  cxd5 {[%clk 0:02:39]} 10. Be2 {[%clk 0:02:52]}  Nc6 {[%clk 0:02:38]} 11. O-O {[%clk 0:02:52]}  Bg4 {[%clk 0:02:38]} 12. b4 {[%clk 0:02:50]}  Rc8 {[%clk 0:02:32]} 13. Bb2 {[%clk 0:02:49]}  Bxf3 {[%clk 0:02:23]} 14. Bxf3 {[%clk 0:02:48]}  d4 {[%clk 0:02:24]} 15. exd4 {[%clk 0:02:47]}  Qxd4 {[%clk 0:02:19]} 16. Na4 {[%clk 0:02:27]}  Qf4 {[%clk 0:02:06]} 17. g3 {[%clk 0:02:19]}  Qg5 {[%clk 0:02:02]} 18. h4 {[%clk 0:02:03]}  Qb5 {[%clk 0:01:59]} 19. Nc3 {[%clk 0:01:58]}  Qc4 {[%clk 0:01:56]} 20. Qe2 {[%clk 0:01:53]}  Nd4 {[%clk 0:01:54]} 21. Qd1 {[%clk 0:01:13]}  Rcd8 {[%clk 0:01:45]} 22. Re1 {[%clk 0:00:58]}  Nb3 {[%clk 0:01:32]} 23. Qe2 {[%clk 0:00:56]}  Qxe2 {[%clk 0:01:27]} 24. Rxe2 {[%clk 0:00:56]}  Nxa1 {[%clk 0:01:28]} 25. Rxe7 {[%clk 0:00:56]}  Nb3 {[%clk 0:01:22]} 26. Rxb7 {[%clk 0:00:42]}  Nd2 {[%clk 0:01:21]} 27. Be2 {[%clk 0:00:29]}  Rfe8 {[%clk 0:01:12]} 28. Kg2 {[%clk 0:00:28]}  Nb3 {[%clk 0:01:03]} 29. Bc4 {[%clk 0:00:26]}  Rd2 {[%clk 0:00:53]} 30. Bxb3 {[%clk 0:00:24]}  Rc8 {[%clk 0:00:46]} 31. Na4 {[%clk 0:00:21]}  Nd5 {[%clk 0:00:36]} 32. Bxd5 {[%clk 0:00:15]}  Rxd5 {[%clk 0:00:37]} 33. Nc5 {[%clk 0:00:12]}  a5 {[%clk 0:00:36]} 34. Bc1 {[%clk 0:00:09]}  axb4 {[%clk 0:00:35]} 35. axb4 {[%clk 0:00:09]}  h5 {[%clk 0:00:33]} 36. Be3 {[%clk 0:00:10]}  Ra8 {[%clk 0:00:31]} 37. Rd7 {[%clk 0:00:08]}  Ra2 {[%clk 0:00:32]} 38. Rxd5 {[%clk 0:00:07]} 1-0


[Site "https://www.chess.com"]